fUST/lending_fUST_20240801
["ID","MTS","AMOUNT","RATE_DAILY","PERIOD"]
[333816351,1722527447799,-500.0,0.0001452,2]
[333816352,1722527447809,-601.8,0.0001452,2]
[333816353,1722527447818,-977.11,0.0001452,2]
[333816354,1722527447831,-500.0,0.0001452,2]
[333816355,1722527447841,-516.15582011,0.0001452,2]
[333816356,1722527447850,-500.0,0.0001452,2]
[333816357,1722527447860,-837.25,0.0001452,2]
[333816358,1722527447870,-500.0,0.0001452,2]
[333816359,1722527447879,-500.0,0.0001452,2]
[333816360,1722527447889,-500.0,0.0001452,2]
[333816361,1722527447899,-500.0,0.0001452,2]
[333816362,1722527447908,-500.0,0.0001452,2]
[333816363,1722527447918,-500.0,0.0001452,2]
[333816364,1722527447928,-500.0,0.0001452,2]
[333816365,1722527447937,-500.0,0.0001452,2]
[333816366,1722527447947,-549.82,0.0001452,2]
[333816367,1722527447957,-500.0,0.0001452,2]
[333816368,1722527447966,-988.31,0.0001452,2]
[333816369,1722527447976,-864.97,0.0001452,2]
[333816370,1722527447986,-1980.88,0.0001452,2]
[333816371,1722527447999,-1451.7,0.0001452,2]
[333816372,1722527448009,-711.36,0.0001452,2]
[333816373,1722527448019,-3412.02,0.0001452,2]
[333816374,1722527448029,-1183.34,0.0001452,2]
[333816375,1722527448039,-844.95,0.0001452,2]
[333816376,1722527448048,-500.0,0.0001452,2]
[333816377,1722527448057,-506.33901798,0.0001452,2]
[333816378,1722527448067,-500.0,0.0001452,2]
[333816379,1722527448075,-500.0,0.0001452,2]
[333816380,1722527448085,-1234.1,0.0001452,2]
[333816381,1722527448094,-2842.56,0.0001452,2]
[333816382,1722527448102,-500.0,0.0001452,2]
[333816383,1722527448112,-615.01,0.0001452,2]
[333816384,1722527448121,-759.95,0.0001452,2]
[333816385,1722527448130,-1146.41,0.0001452,2]
[333816386,1722527448139,-500.0,0.0001452,2]
[333816387,1722527448150,-500.0,0.0001452,2]
[333816388,1722527448160,-500.0,0.0001452,2]
[333816389,1722527448170,-500.0,0.0001452,2]
[333816390,1722527448181,-3649.92,0.0001452,2]
[333816391,1722527448191,-500.0,0.0001452,2]
[333816392,1722527448201,-692.72,0.0001452,2]
[333816393,1722527448212,-4139.39,0.0001452,2]
[333816394,1722527448222,-500.0,0.0001452,2]
[333816395,1722527448232,-539.15,0.0001452,2]
[333816396,1722527448247,-1029.07,0.0001452,2]
[333816397,1722527448256,-500.0,0.0001452,2]
[333816398,1722527448266,-500.0,0.0001452,2]
[333816399,1722527448275,-500.0,0.0001452,2]
[333816400,1722527448285,-500.0,0.0001452,2]
[333816401,1722527448294,-784.45,0.0001452,2]
[333816402,1722527448304,-500.0,0.0001452,2]
[333816403,1722527448313,-633.5,0.0001452,2]
[333816404,1722527448323,-2427.84,0.0001452,2]
[333816405,1722527448333,-1304.98,0.0001452,2]
[333816406,1722527448344,-684.84,0.0001452,2]
[333816407,1722527448354,-1044.36,0.0001452,2]
[333816408,1722527448364,-500.0,0.0001452,2]
[333816409,1722527448372,-597.65,0.0001452,2]
[333816410,1722527448383,-747.6,0.0001452,2]
[333816411,1722527448393,-1256.61,0.0001452,2]
[333816412,1722527448402,-875.91,0.0001452,2]
[333816413,1722527448412,-620.81,0.0001452,2]
[333816414,1722527448422,-518.62,0.0001452,2]
[333816415,1722527448432,-500.0,0.0001452,2]
[333816416,1722527448442,-693.74,0.0001452,2]
[333816417,1722527448452,-500.0,0.0001452,2]
[333816418,1722527448461,-500.0,0.0001452,2]
[333816419,1722527448471,-1294.3,0.0001452,2]
[333816420,1722527448482,-500.0,0.0001452,2]
[333816421,1722527448494,-503.84237986,0.0001452,2]
[333816422,1722527448504,-586.74,0.0001452,2]
[333816423,1722527448514,-500.0,0.0001452,2]
[333816424,1722527448523,-500.0,0.0001452,2]
[333816425,1722527448533,-500.0,0.0001452,2]
[333816426,1722527448543,-500.0,0.0001452,2]
[333816427,1722527448553,-500.0,0.0001452,2]
[333816428,1722527448564,-288.920834,0.00014543,2]
[333816429,1722527448573,-210.494126,0.00014543,2]
[333816430,1722527448582,-6616.15550866,0.00014574,2]
[333816431,1722527448593,-556.0,0.00014664,2]
[333816432,1722527448603,-261.15018643,0.0001469,2]
[333816433,1722527448613,-527.09552675,0.0001469,2]
[333816434,1722527448625,-816.07415827,0.0001469,2]
[333816435,1722527448635,-30000.0,0.0001469,2]
[333816436,1722527448644,-288.920834,0.00014722,2]
[333816437,1722527448654,-210.494126,0.00014722,2]
[333816438,1722527448664,-500.0,0.00014794,2]
[333816439,1722527448674,-500.0,0.00014794,2]
[333816440,1722527448684,-500.0,0.00014794,2]
[333816441,1722527448695,-500.0,0.00014794,2]
[333816442,1722527448705,-500.0,0.00014794,2]
[333816443,1722527448714,-654.18,0.00014794,2]
[333816444,1722527448725,-500.0,0.00014794,2]
[333816445,1722527448734,-653.73,0.00014794,2]
[333816446,1722527448748,-178.92395362,0.00014794,2]
[333816447,1722527448763,-500.0,0.00014794,2]
[333816448,1722527448773,-500.0,0.00014794,2]
[333816449,1722527448783,-500.0,0.00014794,2]
[333816450,1722527448794,-500.0,0.00014794,2]
[333816451,1722527448804,-500.0,0.00014794,2]
[333816452,1722527448814,-500.0,0.00014794,2]
[333816453,1722527448825,-236.88596401,0.00014794,2]
[333816454,1722527448838,-613.36,0.00014794,2]
[333816455,1722527448849,-500.0,0.00014794,2]
[333816456,1722527448859,-500.0,0.00014794,2]
[333816457,1722527448868,-500.0,0.00014794,2]
[333816458,1722527448877,-681.35,0.00014794,2]
[333816459,1722527448887,-500.0,0.00014794,2]
[333816460,1722527448896,-508.46,0.00014794,2]
[333816461,1722527448906,-500.0,0.00014794,2]
[333816462,1722527448916,-500.0,0.00014794,2]
[333816463,1722527448926,-601.8,0.00014794,2]
[333816464,1722527448936,-977.11,0.00014794,2]
[333816465,1722527448946,-500.0,0.00014794,2]
[333816466,1722527448955,-500.0,0.00014794,2]
[333816467,1722527448965,-837.25,0.00014794,2]
[333816468,1722527448975,-500.0,0.00014794,2]
[333816469,1722527448986,-500.0,0.00014794,2]
[333816470,1722527448998,-500.0,0.00014794,2]
[333816471,1722527449008,-500.0,0.00014794,2]
[333816472,1722527449018,-500.0,0.00014794,2]
[333816473,1722527449028,-500.0,0.00014794,2]
[333816474,1722527449106,-500.0,0.00014794,2]
[333816475,1722527449116,-218.88167498,0.00014794,2]
[333816476,1722527449126,-549.82,0.00014794,2]
[333816477,1722527449137,-988.31,0.00014794,2]
[333816478,1722527449147,-864.97,0.00014794,2]
[333816479,1722527449157,-1980.88,0.00014794,2]
[333816480,1722527449167,-1451.7,0.00014794,2]
[333816481,1722527449178,-711.36,0.00014794,2]
[333816482,1722527449187,-3412.02,0.00014794,2]
[333816483,1722527449198,-1183.34,0.00014794,2]
[333816484,1722527449208,-844.95,0.00014794,2]
[333816485,1722527449218,-500.0,0.00014794,2]
[333816486,1722527449228,-500.0,0.00014794,2]
[333816487,1722527449237,-500.0,0.00014794,2]
[333816488,1722527449252,-1234.1,0.00014794,2]
[333816489,1722527449262,-2842.56,0.00014794,2]
[333816490,1722527449271,-500.0,0.00014794,2]
[333816491,1722527449281,-615.01,0.00014794,2]
[333816492,1722527449290,-759.95,0.00014794,2]
[333816493,1722527449300,-1146.41,0.00014794,2]
[333816494,1722527449310,-500.0,0.00014794,2]
[333816495,1722527449321,-500.0,0.00014794,2]
[333816496,1722527449331,-500.0,0.00014794,2]
[333816497,1722527449340,-3649.92,0.00014794,2]
[333816498,1722527449350,-510.79630798,0.00014794,2]
[333816499,1722527449359,-692.72,0.00014794,2]
[333816500,1722527449370,-4139.39,0.00014794,2]
[333816501,1722527449383,-500.0,0.00014794,2]
[333816502,1722527449393,-539.15,0.00014794,2]
[333816503,1722527449404,-1029.07,0.00014794,2]
[333816504,1722527449414,-500.0,0.00014794,2]
[333816505,1722527449425,-500.0,0.00014794,2]
[333816506,1722527449434,-500.0,0.00014794,2]
[333816507,1722527449444,-784.45,0.00014794,2]
[333816508,1722527449454,-500.0,0.00014794,2]
[333816509,1722527449464,-633.5,0.00014794,2]
[333816510,1722527449475,-2427.84,0.00014794,2]
[333816511,1722527449484,-1304.98,0.00014794,2]
[333816512,1722527449496,-684.84,0.00014794,2]
[333816513,1722527449506,-1044.36,0.00014794,2]
[333816514,1722527449516,-500.0,0.00014794,2]
[333816515,1722527449526,-597.65,0.00014794,2]
[333816516,1722527449537,-747.6,0.00014794,2]
[333816517,1722527449548,-1256.61,0.00014794,2]
[333816518,1722527449557,-875.91,0.00014794,2]
[333816519,1722527449568,-620.81,0.00014794,2]
[333816520,1722527449578,-518.62,0.00014794,2]
[333816521,1722527449587,-225.40571439,0.00014794,2]
[333816522,1722527449597,-693.74,0.00014794,2]
[333816523,1722527449606,-500.0,0.00014794,2]
[333816524,1722527449616,-500.0,0.00014794,2]
[333816525,1722527449627,-1294.3,0.00014794,2]
[333816526,1722527449636,-500.0,0.00014794,2]
[333816527,1722527449645,-586.74,0.00014794,2]
[333816528,1722527449655,-500.0,0.00014794,2]
[333816529,1722527449666,-500.0,0.00014794,2]
[333816530,1722527449675,-510.98180364,0.00014794,2]
[333816531,1722527449685,-500.0,0.00014794,2]
[333816532,1722527449694,-500.0,0.00014794,2]
[333816533,1722527449704,-288.920834,0.00014902,2]
[333816534,1722527449713,-210.494126,0.00014902,2]
[333816535,1722527449724,-1091.36515182,0.00014999,2]
[333816536,1722527449734,-315.09057657,0.00015,2]
[333816537,1722527449749,-595.29,0.00015067,2]
[333816538,1722527449759,-1258.38,0.00015067,2]
[333816539,1722527449769,-500.0,0.00015068,2]
[333816540,1722527449779,-500.0,0.00015068,2]
[333816541,1722527449789,-500.0,0.00015068,2]
[333816542,1722527449799,-500.0,0.00015068,2]
[333816543,1722527449815,-500.0,0.00015068,2]
[333816544,1722527449833,-654.18,0.00015068,2]
[333816545,1722527449849,-500.0,0.00015068,2]
[333816546,1722527449863,-653.73,0.00015068,2]
[333816547,1722527449878,-500.0,0.00015068,2]
[333816548,1722527449895,-500.0,0.00015068,2]
[333816549,1722527449910,-500.0,0.00015068,2]
[333816550,1722527449928,-500.0,0.00015068,2]
[333816551,1722527449945,-500.0,0.00015068,2]
[333816552,1722527449959,-613.36,0.00015068,2]
[333816553,1722527449975,-340.07051285,0.00015068,2]
[333816554,1722527449990,-500.0,0.00015068,2]
[333816555,1722527450003,-500.0,0.00015068,2]
[333816556,1722527450016,-681.35,0.00015068,2]
[333816557,1722527450029,-500.0,0.00015068,2]
[333816558,1722527450044,-508.46,0.00015068,2]
[333816559,1722527450058,-500.0,0.00015068,2]
[333816560,1722527450076,-500.0,0.00015068,2]
[333816561,1722527450091,-601.8,0.00015068,2]
[333816562,1722527450102,-977.11,0.00015068,2]
[333816563,1722527450114,-500.0,0.00015068,2]
[333816564,1722527450130,-500.0,0.00015068,2]
[333816565,1722527450144,-837.25,0.00015068,2]
[333816566,1722527450157,-219.31235135,0.00015068,2]
[333816567,1722527450170,-500.0,0.00015068,2]
[333816568,1722527450184,-500.0,0.00015068,2]
[333816569,1722527450196,-500.0,0.00015068,2]
[333816570,1722527450208,-515.74558089,0.00015068,2]
[333816571,1722527450221,-500.0,0.00015068,2]
[333816572,1722527450233,-500.0,0.00015068,2]
[333816573,1722527450247,-549.82,0.00015068,2]
[333816574,1722527450260,-988.31,0.00015068,2]
[333816575,1722527450273,-864.97,0.00015068,2]
[333816576,1722527450286,-1980.88,0.00015068,2]
[333816577,1722527450298,-1451.7,0.00015068,2]
[333816578,1722527450312,-711.36,0.00015068,2]
[333816579,1722527450326,-3412.02,0.00015068,2]
[333816580,1722527450340,-1183.34,0.00015068,2]
[333816581,1722527450352,-844.95,0.00015068,2]
[333816582,1722527450364,-500.0,0.00015068,2]
[333816583,1722527450376,-296.26201036,0.00015068,2]
[333816584,1722527450388,-500.0,0.00015068,2]
[333816585,1722527450402,-1234.1,0.00015068,2]
[333816586,1722527450418,-2842.56,0.00015068,2]
[333816587,1722527450431,-500.0,0.00015068,2]
[333816588,1722527450444,-615.01,0.00015068,2]
[333816589,1722527450457,-759.95,0.00015068,2]
[333816590,1722527450470,-1146.41,0.00015068,2]
[333816591,1722527450483,-500.0,0.00015068,2]
[333816592,1722527450495,-500.0,0.00015068,2]
[333816593,1722527450509,-500.0,0.00015068,2]
[333816594,1722527450522,-3649.92,0.00015068,2]
[333816595,1722527450535,-692.72,0.00015068,2]
[333816596,1722527450547,-4139.39,0.00015068,2]
[333816597,1722527450560,-500.0,0.00015068,2]
[333816598,1722527450574,-539.15,0.00015068,2]
[333816599,1722527450586,-1029.07,0.00015068,2]
[333816600,1722527450599,-500.0,0.00015068,2]
[333816601,1722527450612,-784.45,0.00015068,2]
[333816602,1722527450625,-500.0,0.00015068,2]
[333816603,1722527450637,-633.5,0.00015068,2]
[333816604,1722527450650,-2427.84,0.00015068,2]
[333816605,1722527450662,-1304.98,0.00015068,2]
[333816606,1722527450674,-684.84,0.00015068,2]
[333816607,1722527450688,-1044.36,0.00015068,2]
[333816608,1722527450701,-500.0,0.00015068,2]
[333816609,1722527450715,-597.65,0.00015068,2]
[333816610,1722527450729,-747.6,0.00015068,2]
[333816611,1722527450743,-1256.61,0.00015068,2]
[333816612,1722527450862,-875.91,0.00015068,2]
[333816613,1722527450872,-620.81,0.00015068,2]
[333816614,1722527450882,-518.62,0.00015068,2]
[333816615,1722527450894,-693.74,0.00015068,2]
[333816616,1722527450904,-500.0,0.00015068,2]
[333816617,1722527450914,-500.0,0.00015068,2]
[333816618,1722527450924,-1294.3,0.00015068,2]
[333816619,1722527450934,-500.0,0.00015068,2]
[333816620,1722527450944,-586.74,0.00015068,2]
[333816621,1722527450955,-500.0,0.00015068,2]
[333816622,1722527450965,-500.0,0.00015068,2]
[333816623,1722527450975,-500.0,0.00015068,2]
[333816624,1722527450985,-288.920834,0.00015082,2]
[333816625,1722527450997,-210.494126,0.00015082,2]
[333816626,1722527451007,-595.29,0.00015341,2]
[333816627,1722527451017,-1258.38,0.00015341,2]
[333816628,1722527451027,-500.0,0.00015342,2]
[333816629,1722527451038,-500.0,0.00015342,2]
[333816630,1722527451048,-627.50981848,0.00015342,2]
[333816631,1722527451058,-500.0,0.00015342,2]
[333816632,1722527451067,-500.0,0.00015342,2]
[333816633,1722527451077,-654.18,0.00015342,2]
[333816634,1722527451087,-500.0,0.00015342,2]
[333816635,1722527451097,-653.73,0.00015342,2]
[333816636,1722527451107,-500.0,0.00015342,2]
[333816637,1722527451117,-500.0,0.00015342,2]
[333816638,1722527451127,-500.0,0.00015342,2]
[333816639,1722527451138,-500.0,0.00015342,2]
[333816640,1722527451148,-500.0,0.00015342,2]
[333816641,1722527451158,-613.36,0.00015342,2]
[333816642,1722527451167,-500.0,0.00015342,2]
[333816643,1722527451177,-500.0,0.00015342,2]
[333816644,1722527451187,-681.35,0.00015342,2]
[333816645,1722527451197,-500.0,0.00015342,2]
[333816646,1722527451207,-508.46,0.00015342,2]
[333816647,1722527451216,-500.0,0.00015342,2]
[333816648,1722527451226,-568.22,0.00015342,2]
[333816649,1722527451236,-601.8,0.00015342,2]
[333816650,1722527451247,-977.11,0.00015342,2]
[333816651,1722527451256,-500.0,0.00015342,2]
[333816652,1722527451265,-500.0,0.00015342,2]
[333816653,1722527451274,-837.25,0.00015342,2]
[333816654,1722527451283,-500.0,0.00015342,2]
[333816655,1722527451292,-500.0,0.00015342,2]
[333816656,1722527451301,-500.0,0.00015342,2]
[333816657,1722527451312,-500.0,0.00015342,2]
[333816658,1722527451322,-549.82,0.00015342,2]
[333816659,1722527451331,-988.31,0.00015342,2]
[333816660,1722527451342,-864.97,0.00015342,2]
[333816661,1722527451352,-1980.88,0.00015342,2]
[333816662,1722527451362,-1451.7,0.00015342,2]
[333816663,1722527451371,-711.36,0.00015342,2]
[333816664,1722527451381,-3412.02,0.00015342,2]
[333816665,1722527451392,-844.95,0.00015342,2]
[333816666,1722527451403,-1183.34,0.00015342,2]
[333816667,1722527451414,-500.0,0.00015342,2]
[333816668,1722527451424,-500.0,0.00015342,2]
[333816669,1722527451434,-1234.1,0.00015342,2]
[333816670,1722527451444,-2842.56,0.00015342,2]
[333816671,1722527451454,-500.0,0.00015342,2]
[333816672,1722527451465,-615.01,0.00015342,2]
[333816673,1722527451475,-759.95,0.00015342,2]
[333816674,1722527451485,-1146.41,0.00015342,2]
[333816675,1722527451496,-500.0,0.00015342,2]
[333816676,1722527451505,-500.0,0.00015342,2]
[333816677,1722527451514,-500.0,0.00015342,2]
[333816678,1722527451523,-2324.03986902,0.00015342,2]
[333816679,1722527451672,-1325.88013098,0.00015342,2]
[333816680,1722527451682,-74.14277807,0.00015342,2]
[333816681,1722527451694,-618.57722193,0.00015342,2]
[333816682,1722527451704,-3335.03584724,0.00015342,2]
[333816683,1722527451717,-804.35415276,0.00015342,2]
[333816684,1722527451727,-500.0,0.00015342,2]
[333816685,1722527451737,-539.15,0.00015342,2]
[333816686,1722527451753,-1029.07,0.00015342,2]
[333816687,1722527451763,-500.0,0.00015342,2]
[333816688,1722527451772,-784.45,0.00015342,2]
[333816689,1722527451781,-500.0,0.00015342,2]
[333816690,1722527451792,-633.5,0.00015342,2]
[333816691,1722527451802,-2427.84,0.00015342,2]
[333816692,1722527451811,-1304.98,0.00015342,2]
[333816693,1722527451821,-684.84,0.00015342,2]
[333816694,1722527451830,-1044.36,0.00015342,2]
[333816695,1722527451841,-500.0,0.00015342,2]
[333816696,1722527451850,-597.65,0.00015342,2]
[333816697,1722527451860,-747.6,0.00015342,2]
[333816698,1722527451871,-1256.61,0.00015342,2]
[333816699,1722527451881,-875.91,0.00015342,2]
[333816700,1722527451892,-620.81,0.00015342,2]
[333816701,1722527451901,-518.62,0.00015342,2]
[333816702,1722527451911,-693.74,0.00015342,2]
[333816703,1722527451921,-500.0,0.00015342,2]
[333816704,1722527451931,-500.0,0.00015342,2]
[333816705,1722527451941,-1294.3,0.00015342,2]
[333816706,1722527451950,-500.0,0.00015342,2]
[333816707,1722527451960,-586.74,0.00015342,2]
[333816708,1722527451969,-500.0,0.00015342,2]
[333816709,1722527451979,-500.0,0.00015342,2]
[333816710,1722527451988,-500.0,0.00015342,2]
[333816711,1722527452000,-400.0,0.00015346,2]
[333816712,1722527452010,-170.1171544,0.00015454,2]
[333816713,1722527452021,-500.0,0.00015616,2]
[333816714,1722527452032,-500.0,0.00015616,2]
[333816715,1722527452041,-500.0,0.00015616,2]
[333816716,1722527452050,-500.0,0.00015616,2]
[333816717,1722527452060,-654.18,0.00015616,2]
[333816718,1722527452070,-500.0,0.00015616,2]
[333816719,1722527452079,-653.73,0.00015616,2]
[333816720,1722527452090,-533.26905699,0.00015616,2]
[333816721,1722527452099,-500.0,0.00015616,2]
[333816722,1722527452109,-500.0,0.00015616,2]
[333816723,1722527452119,-500.0,0.00015616,2]
[333816724,1722527452130,-500.0,0.00015616,2]
[333816725,1722527452142,-613.36,0.00015616,2]
[333816726,1722527452152,-434.99,0.00015616,2]
[333816727,1722527452162,-500.0,0.00015616,2]
[333816728,1722527452172,-681.35,0.00015616,2]
[333816729,1722527452183,-500.0,0.00015616,2]
[333816730,1722527452194,-500.0,0.00015616,2]
[333816731,1722527452204,-508.46,0.00015616,2]
[333816732,1722527452214,-601.8,0.00015616,2]
[333816733,1722527452224,-977.11,0.00015616,2]
[333816734,1722527452234,-500.0,0.00015616,2]
[333816735,1722527452246,-837.25,0.00015616,2]
[333816736,1722527452255,-500.0,0.00015616,2]
[333816737,1722527452264,-500.0,0.00015616,2]
[333816738,1722527452273,-500.0,0.00015616,2]
[333816739,1722527452283,-500.0,0.00015616,2]
[333816740,1722527452292,-500.0,0.00015616,2]
[333816741,1722527452302,-549.82,0.00015616,2]
[333816742,1722527452312,-988.31,0.00015616,2]
[333816743,1722527452321,-864.97,0.00015616,2]
[333816744,1722527452331,-1980.88,0.00015616,2]
[333816745,1722527452343,-1451.7,0.00015616,2]
[333816746,1722527452353,-711.36,0.00015616,2]
[333816747,1722527452363,-3412.02,0.00015616,2]
[333816748,1722527452373,-844.95,0.00015616,2]
[333816749,1722527452383,-1183.34,0.00015616,2]
[333816750,1722527452393,-500.0,0.00015616,2]
[333816751,1722527452403,-500.0,0.00015616,2]
[333816752,1722527452412,-1234.1,0.00015616,2]
[333816753,1722527452423,-2842.56,0.00015616,2]
[333816754,1722527452432,-500.0,0.00015616,2]
[333816755,1722527452442,-615.01,0.00015616,2]
[333816756,1722527452452,-759.95,0.00015616,2]
[333816757,1722527452462,-1146.41,0.00015616,2]
[333816758,1722527452472,-500.0,0.00015616,2]
[333816759,1722527452482,-500.0,0.00015616,2]
[333816760,1722527452491,-500.0,0.00015616,2]
[333816761,1722527452502,-3649.92,0.00015616,2]
[333816762,1722527452513,-142.55963583,0.00015616,2]
[333816763,1722527452716,-550.16036417,0.00015616,2]
[333816764,1722527452727,-4139.39,0.00015616,2]
[333816765,1722527452738,-500.0,0.00015616,2]
[333816766,1722527452752,-539.15,0.00015616,2]
[333816767,1722527452767,-1029.07,0.00015616,2]
[333816768,1722527452778,-500.0,0.00015616,2]
[333816769,1722527452789,-784.45,0.00015616,2]
[333816770,1722527452798,-188.86,0.00015616,2]
[333816771,1722527452809,-633.5,0.00015616,2]
[333816772,1722527452819,-2427.84,0.00015616,2]
[333816773,1722527452828,-1304.98,0.00015616,2]
[333816774,1722527452839,-684.84,0.00015616,2]
[333816775,1722527452849,-1044.36,0.00015616,2]
[333816776,1722527452859,-500.0,0.00015616,2]
[333816777,1722527452869,-597.65,0.00015616,2]
[333816778,1722527452879,-747.6,0.00015616,2]
[333816779,1722527452890,-1256.61,0.00015616,2]
[333816780,1722527452901,-875.91,0.00015616,2]
[333816781,1722527452911,-620.81,0.00015616,2]
[333816782,1722527452921,-518.62,0.00015616,2]
[333816783,1722527452931,-693.74,0.00015616,2]
[333816784,1722527452942,-500.0,0.00015616,2]
[333816785,1722527452952,-500.0,0.00015616,2]
[333816786,1722527452962,-1294.3,0.00015616,2]
[333816787,1722527452971,-500.0,0.00015616,2]
[333816788,1722527452981,-586.74,0.00015616,2]
[333816789,1722527452990,-307.93984529,0.00015616,2]
[333816790,1722527453285,-500.0,0.00013698,2]
[333816791,1722527453294,-3033.86,0.00013698,2]
[333816792,1722527453305,-3033.86,0.00013698,2]
[333816793,1722527453317,-3033.86,0.00013698,2]
[333816794,1722527453327,-500.0,0.00013698,2]
[333816795,1722527453338,-3033.86,0.00013698,2]
[333816796,1722527453348,-3033.86,0.00013698,2]
[333816797,1722527453359,-3033.86,0.00013698,2]
[333816798,1722527453370,-268.99553092,0.00013972,2]
[333816799,1722527453379,-549.88,0.0001452,2]
[333816800,1722527453389,-549.88,0.00014794,2]
[333816801,1722527453399,-500.0,0.00015068,2]
[333816802,1722527453409,-549.88,0.00015068,2]
[333816803,1722527453419,-500.0,0.00015342,2]
[333816804,1722527453430,-549.88,0.00015342,2]
[333816805,1722527453442,-192.06015471,0.00015616,2]
[333816806,1722527453452,-500.0,0.00015616,2]
[333816807,1722527453463,-500.0,0.00015616,2]
[333816808,1722527453472,-500.0,0.00015616,2]
[333816809,1722527453481,-549.88,0.00015616,2]
[333816810,1722527453491,-97505.03972851,0.00015708,2]
[333816811,1722527453503,-4586.31960398,0.00015708,2]
[333816812,1722527453513,-630.0,0.00015708,2]
[333816813,1722527453524,-67192.12640089,0.00015709,2]
[333816814,1722527453534,-71707.81409115,0.00015709,2]
[333816815,1722527453545,-65036.09519592,0.00015709,2]
[333816816,1722527453556,-3184.59197636,0.0001571,2]
[333816817,1722527453566,-1500.0,0.0001571,2]
[333816818,1722527453576,-1133.9853025,0.0001571,2]
[333816819,1722527453586,-473.887496,0.00015712,2]
[333816820,1722527453595,-151.0,0.00015744,2]
[333816821,1722527453605,-151.0,0.00015744,2]
[333816822,1722527453614,-151.0,0.00015744,2]
[333816823,1722527453624,-151.0,0.00015744,2]
[333816824,1722527453633,-151.0,0.00015744,2]
[333816825,1722527453642,-151.0,0.00015744,2]
[333816826,1722527453652,-151.0,0.00015746,2]
[333816827,1722527453661,-151.0,0.00015746,2]
[333816828,1722527453671,-339.254906,0.00015746,2]
[333816829,1722527453680,-339.254906,0.00015746,2]
[333816830,1722527453689,-151.0,0.00015746,2]
[333816831,1722527453699,-151.0,0.00015746,2]
[333816832,1722527453708,-4925.97797161,0.00015746,2]
[333816833,1722527453718,-4925.97797161,0.00015746,2]
[333816834,1722527453728,-194.52699436,0.00015851,2]
[333816835,1722527453737,-595.29,0.00015888,2]
[333816836,1722527453751,-1258.38,0.00015888,2]
[333816837,1722527453760,-500.0,0.0001589,2]
[333816838,1722527453771,-500.0,0.0001589,2]
[333816839,1722527453780,-500.0,0.0001589,2]
[333816840,1722527453791,-500.0,0.0001589,2]
[333816841,1722527453800,-654.18,0.0001589,2]
[333816842,1722527453810,-500.0,0.0001589,2]
[333816843,1722527453819,-653.73,0.0001589,2]
[333816844,1722527453831,-500.0,0.0001589,2]
[333816845,1722527453842,-500.0,0.0001589,2]
[333816846,1722527453852,-500.0,0.0001589,2]
[333816847,1722527453863,-500.0,0.0001589,2]
[333816848,1722527453873,-613.36,0.0001589,2]
[333816849,1722527453884,-500.0,0.0001589,2]
[333816850,1722527453894,-681.35,0.0001589,2]